bitfinex/quotes_BTCUSD_20250518
["timestamp","ask_amount","ask_price","bid_price","bid_amount"]
[1747586893992,0.003,105560.0,105550.0,0.69444216]
[1747586894773,0.01247247,105560.0,105550.0,0.69444216]
[1747586894995,0.29462455,105560.0,105550.0,0.3602801]
[1747586895189,0.29265711,105560.0,105550.0,0.57138629]
[1747586895356,0.29265711,105560.0,105550.0,0.55923784]
[1747586895563,0.29265711,105560.0,105550.0,0.3602801]
[1747586895814,0.29265711,105560.0,105550.0,0.37922837]
[1747586896053,0.28318392,105560.0,105550.0,0.77070602]
[1747586896237,0.28318392,105560.0,105550.0,0.78965375]
[1747586896589,0.28318392,105560.0,105550.0,0.78017993]
[1747586897175,0.29265702,105560.0,105550.0,0.78965375]
[1747586898013,0.28318392,105560.0,105550.0,0.78965375]
[1747586898231,0.28318392,105560.0,105550.0,0.78017957]
[1747586898851,0.28318392,105560.0,105550.0,0.77070575]
[1747586899074,0.29265711,105560.0,105550.0,0.77070575]
[1747586899276,0.28318392,105560.0,105550.0,0.77070575]
[1747586899685,0.28318392,105560.0,105550.0,0.78017957]
[1747586900322,0.29265711,105560.0,105550.0,0.77070575]
[1747586900556,0.28318392,105560.0,105550.0,0.78017957]
[1747586901188,0.28318383,105560.0,105550.0,0.7896533]
[1747586901605,0.28318383,105560.0,105550.0,0.78017957]
[1747586901606,0.29265684,105560.0,105550.0,0.78017957]
[1747586901999,0.29265684,105560.0,105550.0,0.7896533]
[1747586902313,0.29265684,105560.0,105550.0,0.77070575]
[1747586902540,0.29265684,105560.0,105550.0,0.75175784]
[1747586902756,0.29265747,105560.0,105550.0,0.76123175]
[1747586903140,0.29265747,105560.0,105550.0,0.77070557]
[1747586903342,0.28318437,105560.0,105550.0,0.7801793]
[1747586903952,0.27371136,105560.0,105550.0,0.7801793]
[1747586904752,0.27371136,105560.0,105550.0,0.7901793]
[1747586906361,0.003,105560.0,105550.0,0.79965285]
[1747586907960,0.003,105560.0,105550.0,0.92836225]
[1747586908312,0.003,105560.0,105550.0,0.88570744]
[1747586908525,0.003,105560.0,105550.0,0.90071385]
[1747586910056,0.003,105560.0,105550.0,0.93211385]
[1747586910824,0.003,105560.0,105550.0,1.15715385]
[1747586912547,0.003,105560.0,105550.0,1.09315385]
[1747586913614,0.003,105560.0,105550.0,1.12615385]
[1747586913826,0.003,105560.0,105550.0,1.15675385]
[1747586917358,0.003,105560.0,105550.0,1.12615385]
[1747586917782,0.003,105560.0,105550.0,1.11114744]
[1747586918226,0.003,105560.0,105550.0,1.13518744]
[1747586918437,0.003,105560.0,105550.0,1.51994744]
[1747586919493,0.003,105560.0,105550.0,1.55114744]
[1747586919709,0.003,105560.0,105550.0,2.07319444]
[1747586920520,0.002,105560.0,105550.0,2.07319444]
[1747586920700,0.002,105560.0,105550.0,2.07519444]
[1747586921108,0.07057086,105580.0,105570.0,0.21786381]
[1747586921457,0.06157233,105580.0,105570.0,1.03993321]
[1747586921691,0.0408431,105580.0,105570.0,1.0489585]
[1747586921889,0.00047233,105580.0,105570.0,1.0489585]
[1747586923107,0.00247233,105580.0,105570.0,1.06405043]
[1747586923852,0.00347233,105580.0,105570.0,1.06405043]
[1747586926964,0.00347233,105580.0,105570.0,1.07536145]
[1747586927758,0.00347233,105580.0,105570.0,1.10826145]
[1747586929620,0.00347233,105580.0,105570.0,1.07536145]
[1747586931159,0.00347233,105580.0,105570.0,1.07524145]
[1747586931369,0.07784301,105580.0,105570.0,1.07524145]
[1747586931579,0.06837233,105580.0,105570.0,1.07524145]
[1747586932870,0.00347233,105580.0,105570.0,1.07524145]
[1747586934110,0.00347233,105580.0,105570.0,1.10614145]
[1747586934331,0.00347233,105580.0,105570.0,1.07524145]
[1747586934537,0.06837233,105580.0,105570.0,1.07524145]
[1747586936913,0.00347233,105580.0,105570.0,1.07524145]
[1747586937323,0.06837233,105580.0,105570.0,0.88296145]
[1747586937515,0.06837233,105580.0,105570.0,0.69060145]
[1747586937715,0.06837233,105580.0,105570.0,0.88296145]
[1747586939817,0.06837233,105580.0,105570.0,0.85454539]
[1747586940271,0.06837233,105580.0,105570.0,0.88296145]
[1747586940986,0.07784301,105580.0,105570.0,0.88296145]
[1747586941247,0.09678482,105580.0,105570.0,0.88276145]
[1747586941480,0.08731378,105580.0,105570.0,0.88276145]
[1747586941701,0.09678464,105580.0,105570.0,0.88276145]
[1747586941916,0.08731378,105580.0,105570.0,0.88276145]
[1747586943228,0.08731378,105580.0,105570.0,0.86766952]
[1747586943436,0.52138912,105580.0,105570.0,0.55249631]
[1747586943650,0.51191826,105580.0,105570.0,0.21249631]
[1747586943863,0.27674467,105580.0,105570.0,0.20726631]
[1747586944041,0.27674467,105580.0,105570.0,0.01510631]
[1747586944885,0.27674467,105580.0,105570.0,0.22349855]
[1747586945095,0.06837233,105580.0,105570.0,0.24244232]
[1747586945306,0.28621535,105580.0,105570.0,0.23297057]
[1747586945533,0.27674449,105580.0,105570.0,0.20726631]
[1747586946182,0.27674449,105580.0,105570.0,0.20542767]
[1747586947035,0.51191808,105580.0,105570.0,0.19595529]
[1747586948069,0.50244704,105580.0,105570.0,0.00379529]
[1747586948434,0.26727345,105580.0,105570.0,0.00379529]
[1747586948647,0.50244704,105580.0,105570.0,0.00379529]
[1747586949263,0.59975644,105580.0,105570.0,0.00379529]
[1747586950480,0.59979644,105580.0,105570.0,0.00379529]
[1747586950962,0.19891995,105570.0,105560.0,0.19216]
[1747586951167,0.26421995,105570.0,105560.0,0.19216]
[1747586951380,0.49939354,105570.0,105560.0,0.19216]
[1747586953379,0.26421995,105570.0,105560.0,0.19216]
[1747586953793,0.2627388,105560.0,105550.0,0.43031102]
[1747586954006,0.59522179,105560.0,105550.0,0.02131102]
[1747586955067,0.61076264,105560.0,105550.0,0.02131102]
[1747586955271,0.61276264,105560.0,105550.0,0.02131102]
[1747586955683,0.66643224,105560.0,105550.0,0.02131102]
[1747586955885,0.61276264,105560.0,105550.0,0.02131102]
[1747586956329,0.61276264,105560.0,105550.0,0.01]
[1747586956534,0.80484264,105560.0,105550.0,0.01]
[1747586956734,1.14484264,105560.0,105550.0,0.01]
[1747586956945,1.39005623,105560.0,105550.0,0.01]
[1747586957203,0.54895765,105550.0,105540.0,0.00054029]
[1747586957405,1.19041423,105550.0,105540.0,0.00054029]
[1747586957608,0.27229063,105520.0,105510.0,0.21860295]
[1747586957818,0.44366422,105520.0,105510.0,0.21860295]
[1747586958679,0.20849009,105520.0,105510.0,0.41763603]
[1747586958881,0.21796669,105520.0,105510.0,0.41777796]
[1747586959085,0.44366449,105520.0,105510.0,0.0265447]
[1747586959724,0.44366449,105520.0,105510.0,0.00014175]
[1747586960770,0.50476449,105520.0,105510.0,0.00014175]
[1747586961011,1.39390833,105520.0,105510.0,0.00014175]
[1747586961558,1.40318821,105520.0,105510.0,0.00014175]
[1747586961993,1.41318821,105520.0,105510.0,0.00214175]
[1747586962201,1.41318821,105520.0,105510.0,0.00114175]
[1747586962419,1.41318821,105520.0,105510.0,0.00014175]
[1747586962833,1.41418821,105520.0,105510.0,0.00014175]
[1747586963044,1.40418821,105520.0,105510.0,0.00014175]
[1747586963251,1.40318821,105520.0,105510.0,0.00014175]
[1747586963898,1.41318821,105520.0,105510.0,0.00014175]
[1747586964110,1.40618821,105520.0,105510.0,0.00014175]
[1747586964316,1.40318821,105520.0,105510.0,0.00014175]
[1747586964530,1.40718821,105520.0,105510.0,0.00014175]
[1747586964770,1.41322821,105520.0,105510.0,0.00014175]
[1747586966234,1.40322821,105520.0,105510.0,0.00014175]
[1747586967395,0.00948271,105450.0,105440.0,0.06739956]
[1747586967564,0.44380298,105450.0,105440.0,0.22672679]
[1747586967921,0.20862939,105450.0,105440.0,0.19532679]
[1747586968618,0.20862939,105450.0,105440.0,0.20032679]
[1747586968826,0.20862939,105450.0,105440.0,0.20332679]
[1747586969040,0.20862939,105450.0,105440.0,0.19832679]
[1747586969431,0.20862939,105450.0,105440.0,0.20232679]
[1747586969627,0.20862939,105450.0,105440.0,0.21181076]
[1747586969872,0.00948262,105450.0,105440.0,0.47537579]
[1747586970073,0.03793075,105450.0,105440.0,0.48185922]
[1747586970224,0.03793075,105450.0,105440.0,0.48585931]
[1747586970423,0.03793075,105450.0,105440.0,0.47637579]
[1747586970627,0.03793075,105450.0,105440.0,0.4818594]
[1747586971035,0.23707725,105450.0,105440.0,0.4878594]
[1747586971233,0.22759409,105450.0,105440.0,0.4878594]
[1747586971437,0.23707725,105450.0,105440.0,0.4878594]
[1747586972466,0.23707725,105450.0,105440.0,0.47837579]
[1747586972719,0.2275949,105450.0,105440.0,0.41397597]
[1747586972892,0.2275949,105450.0,105440.0,0.42345976]
[1747586973041,0.21811228,105450.0,105440.0,0.41397588]
[1747586973757,0.21811228,105450.0,105440.0,0.41397597]
[1747586973900,0.21811228,105450.0,105440.0,0.42345976]
[1747586974234,0.21811228,105450.0,105440.0,0.40449209]
[1747586974568,0.21815228,105450.0,105440.0,0.41397597]
[1747586974783,0.21815228,105450.0,105440.0,0.40449209]
[1747586975000,0.21815228,105450.0,105440.0,0.41397597]
[1747586975223,0.21815219,105450.0,105440.0,0.46444328]
[1747586975433,0.21815219,105450.0,105440.0,0.4739268]
[1747586975647,0.20866912,105450.0,105440.0,0.5058268]
[1747586975869,0.01900533,105450.0,105440.0,0.5058268]
[1747586976141,4e-05,105450.0,105440.0,0.6031362]
[1747586976359,0.01900515,105450.0,105440.0,0.6031362]
[1747586977232,0.02848804,105450.0,105440.0,0.6031362]
[1747586977873,0.02848804,105450.0,105440.0,0.6030562]
[1747586978485,0.01900515,105450.0,105440.0,0.6030562]
[1747586978692,0.01900506,105450.0,105440.0,0.6030562]
[1747586979248,0.01900497,105450.0,105440.0,0.6030562]
[1747586979454,0.02848777,105450.0,105440.0,0.6030562]
[1747586980638,0.22763472,105450.0,105440.0,0.26864679]
[1747586980854,0.20866939,105450.0,105440.0,0.20524679]
[1747586981928,0.1991865,105450.0,105440.0,0.20524679]
[1747586982151,0.43436009,105450.0,105440.0,0.20524679]
[1747586982360,0.43436009,105450.0,105440.0,0.20224723]
[1747586982769,0.1991865,105450.0,105440.0,0.21125346]
[1747586987092,0.20866939,105450.0,105440.0,0.28403752]
[1747586987528,0.20866939,105450.0,105440.0,0.27455346]
[1747586987957,0.20866939,105450.0,105440.0,0.28403752]
[1747586988170,0.1991865,105450.0,105440.0,0.21125346]
[1747586988393,0.1991865,105450.0,105440.0,0.2142156]
[1747586988602,0.1991865,105450.0,105440.0,0.22552662]
[1747586989275,0.1991865,105450.0,105440.0,0.03332662]
[1747586989494,0.43436009,105450.0,105440.0,0.03332662]
[1747586989718,0.2617865,105450.0,105440.0,0.03332662]
[1747586989932,0.49696009,105450.0,105440.0,0.03332662]
[1747586992064,0.49696009,105450.0,105440.0,0.0220156]
[1747586992536,0.49196009,105450.0,105440.0,0.0220156]
[1747586992749,0.2567865,105450.0,105440.0,0.0220156]
[1747586992961,0.49196009,105450.0,105440.0,0.0220156]
[1747586995667,0.49196009,105450.0,105440.0,0.01300937]
[1747586996121,0.2567865,105450.0,105440.0,0.01300937]
[1747586996348,0.49196009,105450.0,105440.0,0.01300937]
[1747586996593,0.58926949,105450.0,105440.0,0.01300937]
[1747586997674,0.3540959,105450.0,105440.0,0.01300937]
[1747586998123,0.3540959,105450.0,105440.0,0.01004723]
[1747586998523,0.58926949,105450.0,105440.0,0.01300946]
[1747586999152,0.58926949,105450.0,105440.0,0.00900946]
[1747586999366,0.58926949,105450.0,105440.0,0.01100946]
[1747586999701,0.58926949,105450.0,105440.0,0.00500946]
[1747586999900,0.58926949,105450.0,105440.0,0.00700946]
[1747587001346,0.58926949,105450.0,105440.0,0.01609278]
[1747587002038,0.82444308,105450.0,105440.0,0.01609278]
[1747587002464,1.17898393,105450.0,105440.0,0.01609278]
[1747587002693,1.18898393,105450.0,105440.0,0.01609278]
[1747587003165,1.18898393,105450.0,105440.0,0.00700946]
[1747587003395,1.18898393,105450.0,105440.0,0.00500946]
[1747587003624,1.18898393,105450.0,105440.0,0.00400946]
[1747587004046,1.18898393,105450.0,105440.0,0.00500946]
[1747587004416,1.18898393,105450.0,105440.0,0.00501017]
[1747587006283,1.18898393,105450.0,105440.0,0.00204723]
[1747587006943,1.19898393,105450.0,105440.0,0.00204723]
[1747587007363,1.38110393,105450.0,105440.0,0.00204723]
[1747587009760,1.37110393,105450.0,105440.0,0.00204723]
[1747587010689,1.37110393,105450.0,105440.0,4.723e-05]
[1747587011950,1.37410393,105450.0,105440.0,4.723e-05]
[1747587012396,1.37310393,105450.0,105440.0,4.723e-05]
[1747587012630,0.20872819,105400.0,105390.0,0.60691415]
[1747587012809,0.20872819,105400.0,105390.0,0.27645041]
[1747587013017,0.20872819,105400.0,105390.0,0.2794139]
[1747587013219,0.44390178,105400.0,105390.0,0.2794139]
[1747587013424,0.44390178,105400.0,105390.0,0.2744139]
[1747587013638,0.20872819,105400.0,105390.0,0.2744139]
[1747587013803,0.20872819,105400.0,105390.0,0.2804139]
[1747587014259,0.60311118,105400.0,105390.0,0.0298539]
[1747587014524,0.57201118,105400.0,105390.0,0.0298539]
[1747587014756,0.54121118,105400.0,105390.0,0.01849975]
[1747587014982,0.20872819,105400.0,105390.0,0.05428831]
[1747587015240,0.20872819,105400.0,105390.0,0.05579975]
[1747587015467,0.20872819,105400.0,105390.0,0.24905963]
[1747587015679,0.19924089,105400.0,105390.0,0.0591127]
[1747587015918,0.19924089,105400.0,105390.0,0.03873626]
[1747587016112,0.19924089,105400.0,105390.0,0.04173626]
[1747587016356,0.19924089,105400.0,105390.0,0.07283626]
[1747587017281,0.21821585,105400.0,105390.0,0.28158407]
[1747587017507,0.01897424,105400.0,105390.0,0.291072]
[1747587017966,0.02846172,105400.0,105390.0,0.291072]
[1747587018228,0.01897424,105400.0,105390.0,0.291072]
[1747587018459,0.02846172,105400.0,105390.0,0.291072]
[1747587019298,0.30377364,105400.0,105390.0,0.26260758]
[1747587019547,0.21821567,105400.0,105390.0,0.08232482]
[1747587019969,0.21821567,105400.0,105390.0,0.29107299]
[1747587020389,0.01897469,105400.0,105390.0,0.31004939]
[1747587020596,0.01897469,105400.0,105390.0,0.31004876]
[1747587021039,0.02846226,105400.0,105390.0,0.31004876]
[1747587021252,0.01897415,105400.0,105390.0,0.31004876]
[1747587021479,0.02846163,105400.0,105390.0,0.31004876]
[1747587022827,0.21819514,105410.0,105400.0,0.26254098]
[1747587023045,0.21819514,105410.0,105400.0,0.27202855]
[1747587023229,0.20870874,105410.0,105400.0,0.27202855]
[1747587023650,0.02846208,105400.0,105390.0,0.30086074]
[1747587024744,0.02846199,105400.0,105390.0,0.29486074]
[1747587025812,0.02846199,105400.0,105390.0,0.30086074]
[1747587026184,0.21821531,105400.0,105390.0,0.28188461]
[1747587026368,0.02846199,105400.0,105390.0,0.31034903]
[1747587026780,0.03794956,105400.0,105390.0,0.31034903]
[1747587027614,0.03794956,105400.0,105390.0,0.3008611]
[1747587027827,0.04743722,105400.0,105390.0,0.3008611]
[1747587028044,0.04743722,105400.0,105390.0,0.31034912]
[1747587028292,0.22770333,105400.0,105390.0,0.30086119]
[1747587028497,0.22770333,105400.0,105390.0,0.3103493]
[1747587028902,0.22770333,105400.0,105390.0,0.31942054]
[1747587029887,0.22770333,105400.0,105390.0,0.31942]
[1747587030719,0.22770333,105400.0,105390.0,0.21942]
[1747587033075,0.02846172,105400.0,105390.0,0.21941946]
[1747587033281,0.03794929,105400.0,105390.0,0.21941946]
[1747587033696,0.03794929,105400.0,105390.0,0.28351946]
[1747587033973,0.02846172,105400.0,105390.0,0.28351946]
[1747587034182,0.01897424,105400.0,105390.0,0.28351946]
[1747587034410,0.02845911,105410.0,105400.0,0.29180243]
[1747587034593,0.04743182,105410.0,105400.0,0.28231549]
[1747587034832,0.22768118,105410.0,105400.0,0.28189961]
[1747587035032,0.22768118,105410.0,105400.0,0.29138691]
[1747587035487,0.22768118,105410.0,105400.0,0.29238691]
[1747587035700,0.03794578,105410.0,105400.0,0.30187394]
[1747587035936,0.0284583,105410.0,105400.0,0.30287394]
[1747587036137,0.03794479,105410.0,105400.0,0.30287394]
[1747587037301,0.00948541,105420.0,105410.0,0.28229478]
[1747587037518,0.03794191,105420.0,105410.0,0.29178091]
[1747587037743,0.01897055,105420.0,105410.0,0.49070091]
[1747587037876,0.03794182,105420.0,105410.0,0.49070091]
[1747587038117,0.00948514,105420.0,105410.0,0.49977215]
[1747587038325,0.22763772,105430.0,105420.0,0.27278841]
[1747587038524,0.22763835,105430.0,105420.0,0.263303]
[1747587038723,0.22763835,105430.0,105420.0,0.27278859]
[1747587038724,0.01896893,105430.0,105420.0,0.27278859]
[1747587038952,0.2276379,105430.0,105420.0,0.28227409]
[1747587039593,0.00948415,105430.0,105420.0,0.29134425]
[1747587039815,0.0284529,105430.0,105420.0,0.29134425]
[1747587040028,0.04742228,105430.0,105420.0,0.29134425]
[1747587040447,0.04193741,105430.0,105420.0,0.29134425]
[1747587041024,0.02296839,105430.0,105420.0,0.29134425]
[1747587041260,0.04193759,105430.0,105420.0,0.29134425]
[1747587042235,0.0324529,105430.0,105420.0,0.29134425]
[1747587042432,0.04193759,105430.0,105420.0,0.29134425]
[1747587043195,0.03793759,105430.0,105420.0,0.29430682]
[1747587043402,0.03793759,105430.0,105420.0,0.29630682]
[1747587045834,0.03793759,105430.0,105420.0,0.1065895]
[1747587046029,0.03793759,105430.0,105420.0,0.29630682]
[1747587048150,0.01896839,105430.0,105420.0,0.29630682]
[1747587048453,0.03793732,105430.0,105420.0,0.29630682]
[1747587048663,0.04742192,105430.0,105420.0,0.29630682]
[1747587049240,0.04742255,105430.0,105420.0,0.29630682]
[1747587050767,0.03793777,105430.0,105420.0,0.29630682]
[1747587050937,0.04742255,105430.0,105420.0,0.29630682]
[1747587051155,0.23712187,105430.0,105420.0,0.21323672]
[1747587051365,0.28155366,105430.0,105420.0,0.01403381]
[1747587051548,0.28155366,105430.0,105420.0,0.21323699]
[1747587051748,0.27206906,105430.0,105420.0,0.22239967]
[1747587051943,0.27206906,105430.0,105420.0,0.42160267]
[1747587052552,0.27206906,105430.0,105420.0,0.43108826]
[1747587052754,0.01896929,105430.0,105420.0,0.45005899]
[1747587053105,0.21815357,105430.0,105420.0,0.45005917]
[1747587053482,0.208649,105440.0,105430.0,0.20866897]
[1747587053692,0.21813243,105440.0,105430.0,0.19918428]
[1747587053891,0.24993243,105440.0,105430.0,0.19918428]
[1747587054311,0.24993243,105440.0,105430.0,0.20866915]
[1747587054473,0.24993243,105440.0,105430.0,0.00296257]
[1747587054691,0.240449,105440.0,105430.0,0.00300982]
[1747587055666,0.00948343,105440.0,105430.0,0.55167879]
[1747587055877,0.01896677,105440.0,105430.0,0.62136276]
[1747587056046,0.03793399,105440.0,105430.0,0.64000605]
[1747587056256,0.02845029,105440.0,105430.0,0.64000605]
[1747587056683,0.04741787,105440.0,105430.0,0.64000605]
[1747587057135,0.21813243,105440.0,105430.0,0.56083739]
[1747587057314,0.21813243,105440.0,105430.0,0.57980695]
[1747587057520,0.21813243,105440.0,105430.0,0.76612226]
[1747587057727,0.21813243,105440.0,105430.0,0.58929155]
[1747587057869,0.22761649,105440.0,105430.0,0.58929155]
[1747587058083,0.01896677,105440.0,105430.0,0.59877588]
[1747587058314,0.2764521,105450.0,105440.0,0.2181327]
[1747587058556,0.26696903,105450.0,105440.0,0.2276164]
[1747587058872,0.27645219,105450.0,105440.0,0.22761649]
[1747587059056,0.01896515,105450.0,105440.0,0.42341631]
[1747587059225,0.22759436,105450.0,105440.0,0.43247219]
[1747587059443,0.22759436,105450.0,105440.0,0.43543476]
[1747587059646,0.22011129,105450.0,105440.0,0.42595133]
[1747587059850,0.002,105450.0,105440.0,0.44491837]
[1747587060059,0.02844543,105460.0,105450.0,0.21811174]
[1747587060261,0.00948145,105460.0,105450.0,0.60882831]
[1747587060435,0.01896308,105460.0,105450.0,0.61788401]
[1747587060643,0.00948145,105460.0,105450.0,0.61788401]
[1747587061050,0.21815395,105470.0,105460.0,0.20860952]
[1747587061263,0.27249338,105480.0,105470.0,0.19910865]
[1747587061492,0.00948091,105470.0,105460.0,0.4138907]
[1747587061979,0.00948073,105470.0,105460.0,0.42337215]
[1747587062187,0.00948064,105470.0,105460.0,0.47409016]
[1747587062399,0.00995279,105470.0,105460.0,0.47409016]
[1747587062629,0.01943361,105470.0,105460.0,0.48314586]
[1747587062933,0.23002255,105470.0,105460.0,0.43418314]
[1747587063249,0.23950382,105470.0,105460.0,0.41346495]
[1747587063360,0.24150382,105470.0,105460.0,0.41346495]
[1747587064677,0.24150373,105470.0,105460.0,0.41346495]
[1747587064882,0.24150373,105470.0,105460.0,0.42294667]
[1747587065095,0.24150373,105470.0,105460.0,0.41346495]
[1747587065304,0.24150373,105470.0,105460.0,0.42294667]
[1747587065739,0.24150373,105470.0,105460.0,0.41346495]
[1747587066755,0.03291417,105470.0,105460.0,0.42294658]
[1747587066965,0.00447215,105470.0,105460.0,0.92045598]
[1747587068008,0.01395271,105470.0,105460.0,0.92045598]
[1747587068212,0.00447215,105470.0,105460.0,0.92045598]
[1747587068630,0.00247215,105470.0,105460.0,0.92045598]
[1747587068838,0.00047215,105470.0,105460.0,0.92145598]
[1747587069038,0.00047215,105470.0,105460.0,0.92245598]
[1747587070076,0.00047215,105470.0,105460.0,0.93381013]
[1747587070356,0.01943353,105470.0,105460.0,0.90381013]
[1747587070712,0.02891453,105470.0,105460.0,0.67781013]
[1747587071030,0.01943353,105470.0,105460.0,1.06749013]
[1747587071458,0.00995271,105470.0,105460.0,1.06749013]
[1747587072137,0.00047215,105470.0,105460.0,1.12889013]
[1747587072361,0.00995279,105470.0,105460.0,1.12889013]
[1747587072979,0.00995279,105470.0,105460.0,1.11753598]
[1747587073207,0.00995279,105470.0,105460.0,1.05585598]
[1747587073824,0.00047215,105470.0,105460.0,1.05585598]
[1747587074047,0.00995279,105470.0,105460.0,1.05585598]
[1747587074174,0.00047215,105470.0,105460.0,1.05585598]
[1747587075523,0.00047215,105470.0,105460.0,1.08755598]
[1747587076137,0.00047215,105470.0,105460.0,1.05585598]
[1747587076372,0.00995279,105470.0,105460.0,1.05585598]
[1747587076562,0.00995271,105470.0,105460.0,1.05585598]
[1747587076714,0.00047215,105470.0,105460.0,1.05585598]
[1747587078633,0.0194337,105470.0,105460.0,1.05585598]
[1747587078787,0.00047215,105470.0,105460.0,1.05585598]
[1747587080800,0.00047215,105470.0,105460.0,1.08825598]
[1747587081019,0.00047215,105470.0,105460.0,1.05585598]
[1747587082677,0.00047215,105470.0,105460.0,1.06721013]
[1747587086714,0.00047215,105470.0,105460.0,1.082349]
[1747587089339,0.00047215,105470.0,105460.0,1.07099485]
[1747587091397,0.25069953,105470.0,105460.0,0.76104201]
[1747587091599,0.279142,105470.0,105460.0,0.95336219]
[1747587091791,0.279142,105470.0,105460.0,0.77660626]
[1747587091992,0.279142,105470.0,105460.0,0.78608807]
[1747587092626,0.28862336,105470.0,105460.0,0.55851457]
[1747587092834,0.26966198,105470.0,105460.0,0.21851457]
[1747587096420,0.26966198,105470.0,105460.0,0.2033757]
[1747587096839,0.26966198,105470.0,105460.0,0.0110557]
[1747587100906,0.26966144,105470.0,105460.0,0.21018323]
[1747587101121,0.27914271,105470.0,105460.0,0.21966531]
[1747587101327,0.24874271,105470.0,105460.0,0.21966531]
[1747587101546,0.21854271,105470.0,105460.0,0.21018323]
[1747587101820,0.21854271,105470.0,105460.0,0.21966531]
[1747587102034,0.25054271,105470.0,105460.0,0.41198531]
[1747587102468,0.25054271,105470.0,105460.0,0.2033757]
[1747587102675,0.25054271,105470.0,105460.0,0.22234004]
[1747587102882,0.25054271,105470.0,105460.0,0.2033757]
[1747587103166,0.25054271,105470.0,105460.0,0.21285796]
[1747587103577,0.24106189,105470.0,105460.0,0.2033757]
[1747587103780,0.27156189,105470.0,105460.0,0.21285796]
[1747587103957,0.27156189,105470.0,105460.0,0.22234013]
[1747587105429,0.27156189,105470.0,105460.0,0.21285796]
[1747587106784,0.27156189,105470.0,105460.0,0.2033757]
[1747587108739,0.2620808,105470.0,105460.0,0.2033757]
[1747587109336,0.2620808,105470.0,105460.0,0.0110557]
[1747587109587,0.60910464,105470.0,105460.0,0.0110557]
[1747587109913,0.37393105,105470.0,105460.0,0.0110557]
[1747587110917,0.37393105,105470.0,105460.0,0.002]
[1747587113228,0.60910464,105470.0,105460.0,0.002]
[1747587114748,0.3593902,105470.0,105460.0,0.002]
[1747587114972,0.3593902,105470.0,105460.0,0.19164536]
[1747587114973,0.2715618,105470.0,105460.0,0.19164536]
[1747587115181,0.2715618,105470.0,105460.0,0.21060961]
[1747587115182,0.2410618,105470.0,105460.0,0.21060961]
[1747587115393,0.2410618,105470.0,105460.0,0.21060979]
[1747587115839,0.2090618,105470.0,105460.0,0.22009187]
[1747587116038,0.2090618,105470.0,105460.0,0.002]
[1747587116247,0.2090618,105470.0,105460.0,0.01106063]
[1747587116248,0.2729618,105470.0,105460.0,0.01106063]
[1747587116684,0.2729618,105470.0,105460.0,0.02054289]
[1747587116886,0.2407618,105470.0,105460.0,0.21967033]
[1747587117257,0.00047215,105470.0,105460.0,0.43091386]
[1747587117472,0.00995288,105470.0,105460.0,0.83461386]
[1747587117884,0.00995279,105470.0,105460.0,0.83461386]
[1747587118443,0.00047215,105470.0,105460.0,0.84407035]
[1747587118645,0.00047215,105470.0,105460.0,1.13365975]
[1747587118860,0.00051215,105470.0,105460.0,1.13365975]
[1747587119475,0.00051215,105470.0,105460.0,1.16013891]
[1747587120545,0.00051215,105470.0,105460.0,1.57213891]
[1747587120710,0.00051215,105470.0,105460.0,1.58428745]
[1747587120927,0.00051215,105470.0,105460.0,1.57213891]
[1747587121539,0.00051215,105470.0,105460.0,1.57113891]
[1747587121748,0.00051215,105470.0,105460.0,1.57013891]
[1747587122169,0.00051215,105470.0,105460.0,1.57313891]
[1747587122405,0.00051215,105470.0,105460.0,1.53759912]
[1747587122802,0.00051215,105470.0,105460.0,1.54665357]
[1747587123027,0.00051215,105470.0,105460.0,1.54965357]
[1747587123242,0.00947885,105490.0,105480.0,0.21804973]
[1747587123446,0.00947885,105490.0,105480.0,0.41028973]
[1747587123888,0.32461993,105500.0,105490.0,0.20855003]
[1747587124097,0.32461993,105500.0,105490.0,0.19907091]
[1747587124303,0.01895761,105490.0,105480.0,0.4718638]
[1747587124502,0.01995761,105490.0,105480.0,0.4718638]
[1747587124903,0.01895761,105490.0,105480.0,0.4718638]
[1747587125116,0.01995761,105490.0,105480.0,0.4718638]
[1747587125520,0.21902816,105490.0,105480.0,0.40986416]
[1747587125738,0.21902807,105490.0,105480.0,0.6210242]
[1747587125994,0.22850728,105490.0,105480.0,0.41934445]
[1747587126177,0.22850728,105490.0,105480.0,0.42882438]
[1747587126406,0.60583302,105490.0,105480.0,0.00905445]
[1747587126802,0.37065943,105490.0,105480.0,0.00905445]
[1747587127004,0.26288969,105480.0,105470.0,0.63062501]
[1747587127172,0.26288969,105480.0,105470.0,0.21862501]
[1747587128320,0.26288969,105480.0,105470.0,0.22462501]
[1747587128869,0.26288969,105480.0,105470.0,0.20728643]
[1747587130366,0.26288969,105480.0,105470.0,0.01504643]
[1747587130581,0.49806328,105480.0,105470.0,0.20728643]
[1747587130987,0.49806328,105480.0,105470.0,0.01504643]
[1747587131399,0.49806328,105480.0,105470.0,0.006]
[1747587131641,0.59537268,105480.0,105470.0,0.003]
[1747587132490,0.19910856,105470.0,105460.0,0.19224]
[1747587132703,0.27188965,105470.0,105460.0,0.20128972]
[1747587133799,0.27188965,105470.0,105460.0,0.20228972]
[1747587133974,0.27188965,105470.0,105460.0,0.20328972]
[1747587134696,0.26240856,105470.0,105460.0,0.20328972]
[1747587138394,0.35971796,105470.0,105460.0,0.20328972]
[1747587138824,0.59489155,105470.0,105460.0,0.20328972]
[1747587139068,0.59489155,105470.0,105460.0,0.01104972]
[1747587139306,0.35971796,105470.0,105460.0,0.002]
[1747587139551,0.35975796,105470.0,105460.0,0.002]
[1747587143819,0.59493155,105470.0,105460.0,0.002]
[1747587144899,0.35975796,105470.0,105460.0,0.002]
[1747587146852,0.6094724,105470.0,105460.0,0.002]
[1747587149199,0.37429881,105470.0,105460.0,0.002]
[1747587149453,0.6094724,105470.0,105460.0,0.002]
[1747587149693,0.37429881,105470.0,105460.0,0.002]
[1747587149906,0.6094724,105470.0,105460.0,0.002]
[1747587150175,0.37429881,105470.0,105460.0,0.002]
[1747587150426,0.6094724,105470.0,105460.0,0.002]
[1747587161257,0.37429881,105470.0,105460.0,0.002]
[1747587161486,0.6094724,105470.0,105460.0,0.002]
[1747587165198,0.37429881,105470.0,105460.0,0.002]
[1747587165577,0.6094724,105470.0,105460.0,0.002]
[1747587171722,0.6094724,105470.0,105460.0,0.01108595]
[1747587174944,0.37429881,105470.0,105460.0,0.01108595]
[1747587175173,0.34389881,105470.0,105460.0,0.01108595]
[1747587175376,0.35995796,105470.0,105460.0,0.01108595]
[1747587175581,0.29645796,105470.0,105460.0,0.01108595]
[1747587177256,0.5776724,105470.0,105460.0,0.01108595]
[1747587177486,0.6082724,105470.0,105460.0,0.01108595]
[1747587178541,0.35855796,105470.0,105460.0,0.01108595]
[1747587178776,0.35855796,105470.0,105460.0,0.00958595]
[1747587178961,0.29645796,105470.0,105460.0,0.00958595]
[1747587179842,0.32455796,105470.0,105460.0,0.00958595]
[1747587181606,0.47898004,105470.0,105460.0,0.00958595]
[1747587181820,0.50698004,105470.0,105460.0,0.00958595]
[1747587182631,0.47898004,105470.0,105460.0,0.00958595]